bitfinex-derivatives/quotes_SOLF0:USTF0_20250523
["timestamp","ask_amount","ask_price","bid_price","bid_amount"]
[1747986382245,0.04027869,182.49,182.45,0.03479025]
[1747986383155,0.04027869,182.49,182.47,5.4804]
[1747986383359,0.04027869,182.49,182.45,0.03479025]
[1747986383753,0.04027869,182.49,182.48,5.4802]
[1747986384047,111.74,182.54,182.47,111.74]
[1747986384242,5.4777,182.57,182.47,111.74]
[1747986384546,590.4374,182.58,182.47,111.74]
[1747986384751,584.96,182.58,182.47,111.74]
[1747986384977,584.96,182.58,182.54,5.4781]
[1747986385147,111.78174944,182.58,182.51,0.03964543]
[1747986386048,0.04174944,182.58,182.51,111.77964543]
[1747986386250,0.04174944,182.58,182.56,5.4777]
[1747986386449,0.04174944,182.58,182.55,0.04081682]
[1747986388759,5.51904944,182.58,182.55,0.04081682]
[1747986388951,0.04174944,182.58,182.55,0.04081682]
[1747986389150,0.04174944,182.58,182.55,5.51891682]
[1747986389552,0.04174944,182.58,182.55,0.04081682]
[1747986389850,5.4776,182.57,182.55,0.04081682]
[1747986390057,111.74174944,182.58,182.55,0.04081682]
[1747986390359,117.21664797,182.58,182.55,0.04081682]
[1747986390556,5.4778,182.56,182.55,0.04081682]
[1747986392058,111.74174944,182.58,182.55,0.04081682]
[1747986392563,5.4778,182.56,182.55,0.04081682]
[1747986403060,5.4793,182.52,182.46,109.8177]
[1747986403557,112.46,182.54,182.46,109.8177]
[1747986404061,5.4774,182.58,182.48,0.0364748]
[1747986404260,112.46,182.59,182.49,112.46]
[1747986404466,117.937,182.59,182.55,5.4781]
[1747986404961,112.46,182.59,182.55,5.4781]
[1747986405170,112.50009062,182.59,182.55,5.5162128]
[1747986405369,112.50009062,182.59,182.55,0.0381128]
[1747986405565,0.04009062,182.59,182.55,104.1381128]
[1747986405768,5.09295113,182.62,182.56,1.9943]
[1747986405966,5.09295113,182.62,182.61,5.4763]
[1747986406372,2.06305113,182.62,182.61,5.4763]
[1747986406667,2.06305113,182.62,182.54,3.8079]
[1747986406668,114.52305113,182.62,182.49,5.47489853]
[1747986406868,0.03904388,182.57,182.54,0.03713777]
[1747986407571,0.03904388,182.57,182.54,5.51543777]
[1747986409268,0.03904388,182.57,182.54,0.03713777]
[1747986409269,5.4781,182.55,182.54,0.03713777]
[1747986409673,0.03904388,182.57,182.54,0.03713777]
[1747986409971,5.478,182.56,182.54,0.03713777]
[1747986410167,0.03904388,182.57,182.54,0.03713777]
[1747986410968,5.478,182.56,182.54,0.03713777]
[1747986411474,0.03904388,182.57,182.54,0.03713777]
[1747986412577,5.4781,182.55,182.54,0.03713777]
[1747986412874,0.03904388,182.57,182.54,0.03713777]
[1747986413077,5.478,182.56,182.54,0.03713777]
[1747986413274,0.03904388,182.57,182.54,0.03713777]
[1747986413577,5.4778,182.56,182.54,0.03713777]
[1747986415077,5.4781,182.55,182.54,0.03713777]
[1747986420282,5.4779,182.56,182.54,0.03713777]
[1747986420581,0.03904388,182.57,182.54,0.03713777]
[1747986421481,5.4778,182.56,182.54,0.03713777]
[1747986421777,0.03904388,182.57,182.54,0.03713777]
[1747986422681,5.478,182.56,182.54,0.03713777]
[1747986423085,0.03904388,182.57,182.54,0.03713777]
[1747986423382,0.03904388,182.57,182.54,5.51543777]
[1747986423570,0.03904388,182.57,182.54,0.03713777]
[1747986423771,0.03904388,182.57,182.56,5.4778]
[1747986443196,0.03904388,182.57,182.54,0.03713777]
[1747986443698,0.03904388,182.57,182.56,5.4778]
[1747986446705,112.46,182.63,182.62,5.476]
[1747986446906,112.44,182.67,182.56,112.44]
[1747986447810,117.9146,182.67,182.63,5.4755]
[1747986448012,117.95487577,182.67,182.63,5.4755]
[1747986448613,5.4749,182.66,182.62,5.4759]
[1747986449613,5.4752,182.65,182.62,5.4759]
[1747986449911,5.4752,182.65,182.6,0.04002203]
[1747986449912,5.47489853,182.63,182.6,0.04002203]
[1747986450208,117.93332155,182.63,182.6,0.04002203]
[1747986450815,5.476,182.62,182.6,0.04002203]
[1747986451014,117.93332155,182.63,182.6,0.04002203]
[1747986451817,5.4762,182.62,182.6,0.04002203]
[1747986453115,5.4762,182.62,182.6,5.51652203]
[1747986453308,123.40912155,182.63,182.6,0.04002203]
[1747986454320,123.40912155,182.63,182.6,5.51642203]
[1747986454816,123.40912155,182.63,182.61,5.4763]
[1747986455019,112.45842302,182.63,182.61,5.4763]
[1747986455217,112.45842302,182.63,182.6,0.04002203]
[1747986456121,112.45842302,182.63,182.6,5.51662203]
[1747986457718,0.03842302,182.63,182.6,0.04002203]
[1747986458220,0.03842302,182.63,182.62,5.476]
[1747986465327,2.302e-05,182.63,182.62,5.476]
[1747986479327,111.7,182.69,182.68,5.4742]
[1747986492347,111.7,182.69,182.67,0.03636426]
[1747986495152,117.174,182.69,182.67,0.03636426]
[1747986496440,111.7,182.69,182.59,5.55255299]
[1747986496842,5.4752,182.65,182.61,5.4762]
[1747986497042,111.64,182.64,182.59,5.55255299]
[1747986497445,0.04144222,182.63,182.61,5.4762]
[1747986497648,0.04144222,182.63,182.6,0.03551288]
[1747986498751,0.04144222,182.63,182.6,5.51191288]
[1747986499950,0.04144222,182.63,182.6,0.03551288]
[1747986500151,5.51734222,182.63,182.6,0.03551288]
[1747986501444,5.4761,182.62,182.6,0.03551288]
[1747986501847,0.04144222,182.63,182.6,0.03551288]
[1747986502043,5.51724222,182.63,182.6,0.03551288]
[1747986502454,0.04144222,182.63,182.6,0.03551288]
[1747986503357,5.51744222,182.63,182.6,0.03551288]
[1747986504251,5.4761,182.62,182.6,0.03551288]
[1747986505150,5.51724222,182.63,182.6,0.03551288]
[1747986506462,5.4762,182.62,182.6,0.03551288]
[1747986507057,5.4763,182.61,182.6,0.03551288]
[1747986507761,0.04144222,182.63,182.6,0.03551288]
[1747986508258,0.04144222,182.63,182.62,5.476]
[1747986513162,0.04144222,182.63,182.6,0.03551288]
[1747986514169,0.04144222,182.63,182.62,5.476]
[1747986523179,0.04144222,182.63,182.61,5.4762]
[1747986523383,0.04144222,182.63,182.6,0.03551288]
[1747986523777,117.09489853,182.62,182.6,0.03551288]
[1747986524986,111.62,182.62,182.6,0.03551288]
[1747986525178,111.62,182.62,182.6,5.51191288]
[1747986525378,111.62,182.62,182.6,0.03551288]
[1747986526989,111.62,182.62,182.6,5.51211288]
[1747986528888,111.62,182.62,182.6,0.03551288]
[1747986529390,5.4763,182.61,182.6,0.03551288]
[1747986529589,5.47489853,182.61,182.57,5.4775]
[1747986529788,5.47489853,182.58,182.51,5.55255299]
[1747986529989,111.64,182.57,182.51,5.55255299]
[1747986530190,122.59259853,182.57,182.53,5.4785]
[1747986530492,117.11489853,182.57,182.51,5.55255299]
[1747986530695,0.03501164,182.56,182.55,5.4781]
[1747986537292,0.03501164,182.56,182.52,0.03991476]
[1747986537683,5.4787,182.53,182.52,0.03991476]
[1747986537888,117.1387,182.53,182.52,0.03991476]
[1747986538292,111.66,182.53,182.52,0.03991476]
[1747986540198,111.66,182.53,182.52,5.51891476]
[1747986540596,111.66,182.53,182.52,0.03991476]
[1747986544302,117.13489853,182.53,182.43,5.55255299]
[1747986545197,117.13489853,182.53,182.46,0.03723665]
[1747986545198,0.03986793,182.5,182.46,0.03723665]
[1747986545398,111.7,182.49,182.46,0.03723665]
[1747986546098,111.7,182.49,182.48,5.4802]
[1747986547004,103.2134,182.49,182.48,5.4802]
[1747986547198,6.793e-05,182.5,182.49,5.4799]
[1747986548207,6.793e-05,182.5,182.49,111.5168]
[1747986548600,111.7,182.58,182.57,5.4775]
[1747986549002,111.7,182.62,182.52,117.17489853]
[1747986549214,111.7,182.62,182.61,5.4761]
[1747986549806,111.7,182.62,182.6,5.51371387]
[1747986550106,111.7,182.62,182.6,0.03721387]
[1747986550310,117.1762,182.62,182.6,0.03721387]
[1747986550509,111.7,182.62,182.6,0.03721387]
[1747986550807,5.4763,182.61,182.6,0.03721387]
[1747986551812,117.1761,182.62,182.6,0.03721387]
[1747986552409,5.4763,182.61,182.6,0.03721387]
[1747986553208,117.1761,182.62,182.6,0.03721387]
[1747986553505,5.47489853,182.61,182.49,106.0169]
[1747986553699,7.32079853,182.61,182.49,106.0169]
[1747986553903,7.32079853,182.61,182.57,5.4773]
[1747986554103,7.32079853,182.61,182.49,106.0169]
[1747986554503,0.03848985,182.57,182.53,0.03841375]
[1747986555006,0.03848985,182.57,182.56,5.4778]
[1747986560916,8.985e-05,182.57,182.56,5.4778]
[1747986563820,8.985e-05,182.57,182.56,7.4443]
[1747986564218,8.985e-05,182.57,182.56,5.4778]
[1747986567115,111.64,182.64,182.63,5.4757]
[1747986572832,0.03637723,182.65,182.64,5.4754]
[1747986581645,0.03637723,182.65,182.63,5.4756]
[1747986581942,0.03637723,182.65,182.63,104.02]
[1747986582441,0.03637723,182.65,182.64,5.4754]
[1747986583038,0.03637723,182.65,182.63,5.4756]
[1747986583234,0.03637723,182.65,182.62,0.03520305]
[1747986583439,111.54,182.64,182.62,0.03520305]
[1747986584940,111.54,182.64,182.62,5.51110305]
[1747986586645,111.54,182.64,182.62,0.03520305]
[1747986586847,117.0154,182.64,182.62,0.03520305]
[1747986587245,118.8999,182.64,182.62,0.03520305]
[1747986588848,113.4245,182.64,182.62,0.03520305]
[1747986589452,118.9001,182.64,182.62,0.03520305]
[1747986589741,113.4245,182.64,182.62,0.03520305]
[1747986590149,5.4757,182.63,182.62,0.03520305]
[1747986591450,120.8951,182.64,182.62,0.03520305]
[1747986591848,115.4196,182.64,182.62,0.03520305]
[1747986592145,115.4196,182.64,182.62,5.51110305]
[1747986592448,115.4196,182.64,182.62,0.03520305]
[1747986592640,120.8951,182.64,182.62,0.03520305]
[1747986593841,119.0106,182.64,182.62,0.03520305]
[1747986595548,113.5351,182.64,182.62,0.03520305]
[1747986595851,5.4757,182.63,182.62,0.03520305]
[1747986597251,5.48,182.63,182.51,5.13912787]
[1747986597454,5.47489853,182.6,182.51,109.17912787]
[1747986597644,5.47489853,182.6,182.53,5.4785]
[1747986597645,113.4865,182.59,182.53,5.4785]
[1747986597946,5.4778,182.57,182.53,5.4785]
[1747986598152,5.51868027,182.57,182.53,5.51995805]
[1747986598555,5.4779,182.56,182.53,5.51995805]
[1747986598755,111.58,182.55,182.53,5.51995805]
[1747986598952,111.58,182.55,182.54,5.4784]
[1747986599854,111.58,182.55,182.53,5.52015805]
[1747986600155,111.58,182.55,182.53,0.04145805]
[1747986600547,117.0582,182.55,182.53,0.04145805]
[1747986600953,111.58,182.55,182.53,0.04145805]
[1747986603658,5.4784,182.54,182.53,0.04145805]
[1747986603959,113.5925,182.55,182.46,5.13912787]
[1747986604161,5.4796,182.51,182.46,5.13912787]
[1747986604460,111.6,182.5,182.47,5.4804]
[1747986604659,111.6,182.5,182.46,5.13912787]
[1747986604854,111.6,182.5,182.46,5.17702431]
[1747986605061,111.64012182,182.5,182.46,5.17702431]
[1747986605262,5.4803,182.48,182.46,5.17702431]
[1747986605560,113.51272182,182.5,182.46,5.17702431]
[1747986605960,5.4801,182.49,182.46,0.03789644]
[1747986606270,113.51272182,182.5,182.46,0.03789644]
[1747986606460,5.48,182.49,182.46,0.03789644]
[1747986606767,113.51272182,182.5,182.46,0.03789644]
[1747986606960,5.4803,182.48,182.46,0.03789644]
[1747986607162,113.51272182,182.5,182.46,0.03789644]
[1747986608161,118.99262182,182.5,182.46,0.03789644]
[1747986608363,118.99262182,182.5,182.46,5.51869644]
[1747986608856,124.46752035,182.5,182.46,5.51869644]
[1747986609062,113.51272182,182.5,182.46,0.03789644]
[1747986609555,118.99252182,182.5,182.46,5.51869644]
[1747986609754,113.51272182,182.5,182.46,0.03789644]
[1747986610063,113.51272182,182.5,182.47,5.4805]
[1747986610261,113.51272182,182.5,182.46,0.03789644]
[1747986610563,111.64012182,182.5,182.46,0.03789644]
[1747986612361,111.64012182,182.5,182.46,5.51869644]
[1747986614264,117.11982182,182.5,182.46,0.03789644]
[1747986615267,111.64012182,182.5,182.46,5.51859644]
[1747986615559,111.64012182,182.5,182.46,0.03789644]
[1747986616458,5.48,182.49,182.46,0.03789644]
[1747986616758,111.64012182,182.5,182.46,0.03789644]
[1747986616954,5.4801,182.49,182.46,0.03789644]
[1747986617158,111.64012182,182.5,182.46,0.03789644]
[1747986617459,1.8986,182.48,182.46,0.03789644]
[1747986618068,7.3789,182.48,182.46,0.03789644]
[1747986618269,1.8986,182.48,182.46,0.03789644]
[1747986619872,7.379,182.48,182.46,0.03789644]
[1747986621778,1.8986,182.48,182.36,111.58]
[1747986621969,5.47489853,182.47,182.34,115.0886]
[1747986622173,111.6,182.46,182.34,115.0886]
[1747986622377,111.6,182.46,182.42,5.4818]
[1747986622775,111.63780372,182.46,182.42,5.5217081]
[1747986623579,117.11870372,182.46,182.42,0.0399081]
[1747986624580,5.4812,182.45,182.42,0.0399081]
[1747986625881,5.4817,182.43,182.42,0.0399081]
[1747986631684,5.4815,182.44,182.42,0.0399081]
[1747986631886,111.63780372,182.46,182.42,0.0399081]
[1747986632991,5.4817,182.43,182.42,0.0399081]
[1747986634686,5.47489853,182.44,182.36,5.4835]
[1747986634893,111.62,182.43,182.33,5.7292]
[1747986635192,5.4829,182.4,182.33,5.7292]
[1747986635393,111.64,182.39,182.36,5.4836]
[1747986635785,111.67826377,182.39,182.36,5.52057591]
[1747986635982,117.16126377,182.39,182.36,5.52057591]
[1747986636185,117.16126377,182.39,182.36,0.03697591]
[1747986638995,5.4833,182.38,182.36,0.03697591]
[1747986639191,111.67826377,182.39,182.36,0.03697591]
[1747986642694,111.67826377,182.39,182.38,5.4832]
[1747986643098,111.67826377,182.39,182.36,0.03697591]
[1747986643501,111.67826377,182.39,182.38,5.4832]
[1747986644496,111.67826377,182.39,182.36,0.03697591]
[1747986646396,5.4835,182.37,182.36,0.03697591]
[1747986648599,5.47489853,182.38,182.27,4.99506078]
[1747986648905,5.47489853,182.35,182.28,5.486]
[1747986649093,5.4848,182.33,182.27,4.99506078]
[1747986649603,0.04155422,182.32,182.29,5.4857]
[1747986650001,0.04155422,182.32,182.28,0.02183101]
[1747986651405,0.04155422,182.32,182.31,5.4853]
[1747986653009,0.04155422,182.32,182.3,5.4853]
[1747986653510,0.04155422,182.32,182.28,0.02183101]
[1747986654212,0.04155422,182.32,182.29,5.4859]
[1747986654505,0.04155422,182.32,182.28,0.02183101]
[1747986654810,5.47489853,182.31,182.19,5.4889]
[1747986655008,5.47489853,182.27,182.19,5.4889]
[1747986655207,111.6,182.26,182.19,5.4889]
[1747986655402,5.4872,182.25,182.19,5.4889]
[1747986655601,111.6,182.26,182.2,5.4886]
[1747986655806,0.03980476,182.24,182.2,5.4886]
[1747986656302,5.51470329,182.24,182.15,4.99506078]
[1747986656504,5.4881,182.22,182.15,4.99506078]
[1747986656812,0.04057922,182.2,182.15,4.99506078]
[1747986658204,5.4892,182.19,182.15,4.99506078]
[1747986658611,0.04057922,182.2,182.15,4.99506078]
[1747986658905,0.04057922,182.2,182.17,5.4895]
[1747986659607,0.04057922,182.2,182.09,117.3879]
[1747986659911,0.03772244,182.16,182.09,117.3879]
[1747986660513,0.03772244,182.16,182.15,5.4902]
[1747986660901,0.03772244,182.16,182.09,117.3879]
[1747986661106,0.03772244,182.16,182.09,5.7679]
[1747986662526,0.03772244,182.16,182.15,5.4902]
[1747986662810,0.03772244,182.16,182.09,5.7679]
[1747986663810,0.03772244,182.16,182.15,5.4902]
[1747986664008,111.64,182.17,182.09,122.90279853]
[1747986664319,111.64,182.17,182.11,5.47489853]
[1747986664512,111.66,182.21,182.11,5.47489853]
[1747986665015,111.66,182.21,182.2,5.4886]
[1747986666216,111.66,182.21,182.19,5.52662244]
[1747986666611,111.66,182.21,182.19,0.03772244]
[1747986667619,111.66,182.21,182.2,5.4886]
[1747986669620,111.66,182.21,182.19,0.03772244]
[1747986672213,117.1486,182.21,182.19,0.03772244]
[1747986672412,111.66,182.21,182.19,0.03772244]
[1747986674222,117.1485,182.21,182.19,0.03772244]
[1747986675312,111.66,182.21,182.19,0.03772244]
[1747986675724,117.1484,182.21,182.19,0.03772244]
[1747986675920,111.66,182.21,182.19,0.03772244]
[1747986677920,5.4886,182.2,182.19,0.03772244]
[1747986678128,111.66,182.21,182.19,0.03772244]
[1747986678322,117.1485,182.21,182.19,0.03772244]
[1747986680029,111.66,182.21,182.19,0.03772244]
[1747986680429,5.47489853,182.2,182.1,104.28]
[1747986680729,5.47489853,182.2,182.15,5.4899]
[1747986681028,5.489,182.19,182.15,5.4899]
[1747986681419,5.52832941,182.19,182.15,5.4899]
[1747986681618,5.4893,182.18,182.15,5.4899]
[1747986681818,111.62,182.17,182.15,5.4899]
[1747986682125,111.62,182.17,182.16,5.4898]
[1747986682931,111.62,182.17,182.13,5.4906]
[1747986683432,111.62,182.17,182.09,5.7679]
[1747986684225,111.62,182.17,182.11,5.4912]
[1747986684421,111.62,182.17,182.09,5.7679]
[1747986684832,117.09489853,182.17,182.09,5.4918]
[1747986685136,117.09489853,182.17,182.05,111.62]
[1747986685432,0.0357257,182.13,182.05,111.62]
[1747986685632,111.6557257,182.13,182.05,215.92]
[1747986686336,117.1467257,182.13,182.07,5.4924]
[1747986686536,117.1467257,182.13,182.05,215.92]
[1747986686836,117.1467257,182.13,182.08,5.4921]
[1747986687435,5.4912,182.12,182.07,5.4925]
[1747986688039,117.1465257,182.13,182.08,5.4922]
[1747986688237,117.1465257,182.13,182.05,111.62]
[1747986688830,111.6557257,182.13,182.05,111.62]
[1747986689138,111.6557257,182.13,182.12,5.491]
[1747986689341,0.0357257,182.13,182.05,111.62]
[1747986689632,111.64,182.12,182.03,5.9408]
[1747986689839,0.04142038,182.09,182.03,5.9408]
[1747986690239,0.04142038,182.09,182.08,5.4923]
[1747986691233,0.04142038,182.09,182.03,5.9408]
[1747986691635,0.04142038,182.09,182.03,3.9239]
[1747986691838,111.64,182.08,182.05,5.4931]
[1747986692544,111.64,182.08,182.07,5.4926]
[1747986693035,0.04142038,182.09,182.05,5.4931]
[1747986693241,0.04142038,182.09,182.03,3.9239]
[1747986693644,0.04142038,182.09,182.06,5.4928]
[1747986693943,0.04142038,182.09,182.03,3.9239]
[1747986694434,5.51631891,182.09,181.99,1.8358]
[1747986694634,11.00851891,182.09,181.99,1.8358]
[1747986694835,5.51631891,182.09,181.99,1.8358]
[1747986695135,0.04142038,182.09,181.99,1.8358]
[1747986695443,0.04142038,182.09,182.0,117.13489853]
[1747986695843,0.04142038,182.09,182.0,111.66]
[1747986696333,5.53342038,182.09,182.0,111.66]
[1747986696530,5.53342038,182.09,181.99,1.8358]
[1747986696740,5.4923,182.08,181.99,1.8358]
[1747986696937,0.03741966,182.05,181.99,1.8358]
[1747986697336,0.03741966,182.05,182.03,5.4935]
[1747986697537,0.03741966,182.05,181.99,1.8358]
[1747986697934,0.03741966,182.05,182.04,5.4935]
[1747986703042,1.966e-05,182.05,182.04,5.4935]
[1747986703240,474.36,182.14,182.11,5.4913]
[1747986703241,111.68,182.12,182.11,5.4913]
[1747986704841,111.68,182.12,182.1,0.03817934]
[1747986706244,111.68,182.12,182.11,5.4913]
[1747986706444,111.68,182.12,182.1,0.03817934]
[1747986707443,111.68,182.12,182.1,5.52977934]
[1747986708744,111.68,182.12,182.1,0.03817934]
[1747986709640,5.4913,182.11,182.1,0.03817934]
[1747986711042,117.1711,182.12,182.1,0.03817934]
[1747986711646,111.68,182.12,182.1,0.03817934]
[1747986712239,5.4913,182.11,182.1,0.03817934]
[1747986715252,5.492,182.09,182.01,109.29918195]
[1747986715448,113.514,182.12,182.01,109.29918195]
[1747986715645,5.4919,182.1,182.01,109.29918195]
[1747986715846,113.514,182.12,182.01,109.29918195]
[1747986716147,0.03693734,182.08,182.01,109.29918195]
[1747986716352,0.03693734,182.08,182.05,5.4929]
[1747986716554,0.03693734,182.08,182.01,109.29918195]
[1747986716847,5.52923734,182.08,182.05,5.493]
[1747986717352,5.52923734,182.08,182.04,5.4933]
[1747986717557,0.03693734,182.08,182.01,104.34]
[1747986717950,0.03693734,182.08,182.05,5.4931]
[1747986718256,5.52943734,182.08,182.01,104.34]
[1747986718459,0.03693734,182.08,182.01,104.34]
[1747986718754,5.52943734,182.08,182.01,104.34]
[1747986718953,5.52943734,182.08,182.03,5.4937]
[1747986719250,5.52943734,182.08,182.01,104.34]
[1747986719457,120.5526,182.07,182.01,104.34]
[1747986719949,115.06,182.07,182.01,104.34]
[1747986720258,115.06,182.07,182.04,5.4933]
[1747986720457,115.06,182.07,182.01,104.34]
[1747986720757,115.06,182.07,182.04,5.4934]
[1747986721058,5.493,182.06,181.99,106.1758]
[1747986721257,0.03619652,182.04,181.99,106.1758]
[1747986722055,0.03619652,182.04,181.99,1.8358]
[1747986723057,0.03619652,182.04,182.0,104.36]
[1747986723257,0.03619652,182.04,182.03,5.4938]
[1747986727264,0.03619652,182.04,182.01,5.4942]
[1747986727456,0.03619652,182.04,182.0,104.36]
[1747986727958,0.03619652,182.04,181.99,4.95918195]
[1747986728157,0.03619652,182.04,182.03,5.4938]
[1747986728766,0.03619652,182.04,182.02,5.4939]
[1747986729448,0.03619652,182.04,182.03,5.4938]
[1747986729750,0.03619652,182.04,181.98,6.87028195]
[1747986729957,0.03619652,182.04,182.0,5.4946]
[1747986730563,0.03619652,182.04,182.01,5.4943]
[1747986730764,0.03619652,182.04,181.98,4.95918195]
[1747986732051,0.03619652,182.04,182.03,5.4938]
[1747986732966,0.03619652,182.04,181.97,1.9527]
[1747986734073,0.03619652,182.04,182.0,5.4945]
[1747986734269,0.03619652,182.04,181.97,1.9527]
[1747986734670,0.03619652,182.04,182.0,5.4944]
[1747986735171,5.52969652,182.04,182.0,5.4944]
[1747986735466,0.03619652,182.04,181.97,1.9527]
[1747986735862,5.52969652,182.04,181.97,1.9527]
[1747986736574,0.03619652,182.04,181.96,4.95918195]
[1747986736767,5.47489853,182.03,181.96,4.95918195]
[1747986736967,5.47489853,181.99,181.96,4.95918195]
[1747986737166,5.4956,181.97,181.96,4.95918195]
[1747986737365,122.0556,181.97,181.96,4.95918195]
[1747986738377,122.0556,181.97,181.91,5.4973]
[1747986739193,116.56,181.97,181.89,9.91992787]
[1747986739386,5.47489853,181.94,181.89,9.91992787]
[1747986739689,5.47489853,181.94,181.84,7.49967737]
[1747986739875,0.04147037,181.91,181.84,7.49967737]
[1747986740987,0.04147037,181.91,181.89,5.4979]
[1747986741390,0.04147037,181.91,181.84,7.49967737]
[1747986741598,0.04147037,181.91,181.88,5.4983]
[1747986742291,0.04147037,181.91,181.84,7.49967737]
[1747986742483,0.04147037,181.91,181.83,1.8718]
[1747986742787,0.04147037,181.91,181.9,5.4977]
[1747986743479,6.80635154,182.05,181.9,392.5]
[1747986743686,5.10476365,182.03,181.92,5.47489853]
[1747986744581,0.0376951,181.99,181.98,5.4953]
[1747986744782,5.10476365,182.03,181.96,0.0382294]
[1747986745187,116.6,182.07,181.96,0.0382294]
[1747986745490,116.6,182.07,181.95,116.6]
[1747986745689,0.04074735,182.03,181.99,0.03762308]
[1747986746693,0.04074735,182.03,182.0,5.4944]
[1747986746891,0.04074735,182.03,181.99,0.03762308]
[1747986747487,0.04074735,182.03,182.01,5.4941]
[1747986748486,0.04074735,182.03,182.02,5.494]
[1747986748887,0.04074735,182.03,181.99,0.03762308]
[1747986749691,0.04074735,182.03,182.0,116.58]
[1747986749996,122.072,182.09,182.04,5.4934]
[1747986750689,122.05489853,182.11,182.01,5.7373]
[1747986750895,0.03506701,182.08,182.04,0.04223514]
[1747986752092,5.47489853,182.06,182.01,1.9153]
[1747986752483,10.96779853,182.06,182.01,7.4094]
[1747986752689,127.52779853,182.06,182.01,7.4094]
[1747986753094,127.52779853,182.06,182.02,5.53408297]
[1747986753696,116.56,182.06,182.02,0.04008297]
[1747986754208,116.56,182.06,182.05,5.4931]
[1747986754400,0.03506701,182.08,182.02,0.04008297]
[1747986756199,0.03506701,182.08,182.05,5.4929]
[1747986756405,0.03506701,182.08,182.02,1.98218297]
[1747986756893,0.03506701,182.08,182.02,3.83558297]
[1747986757701,0.03506701,182.08,182.07,5.4925]
[1747986758292,116.56,182.14,182.06,0.03774944]
[1747986759305,0.03624864,182.12,182.06,0.03774944]
[1747986760094,0.03624864,182.12,182.09,5.4918]
[1747986760294,0.03624864,182.12,182.06,0.03774944]
[1747986760705,0.03624864,182.12,182.1,5.4916]
[1747986761607,0.03624864,182.12,182.09,5.4918]
[1747986762109,0.03624864,182.12,182.06,0.03774944]
[1747986765305,5.4913,182.11,182.06,5.53014944]
[1747986765512,0.03624864,182.12,182.06,0.03774944]
[1747986765703,0.03624864,182.12,182.09,5.4918]
[1747986766407,0.03624864,182.12,182.08,5.492]
[1747986766909,0.03624864,182.12,182.06,0.03774944]
[1747986767312,5.52724864,182.12,182.06,0.03774944]
[1747986768310,5.52724864,182.12,182.07,5.4922]
[1747986768811,5.52724864,182.12,182.08,5.4921]
[1747986769412,5.52724864,182.12,182.09,5.4917]
[1747986769914,0.03624864,182.12,182.06,0.03774944]
[1747986770607,0.03624864,182.12,182.1,5.4915]
[1747986771211,0.03624864,182.12,182.06,0.03774944]
[1747986771809,0.03624864,182.12,182.1,5.4913]
[1747986773518,0.03624864,182.12,182.11,5.4912]
[1747986773712,474.8,182.21,182.1,0.03482819]
[1747986773919,116.08,182.21,182.1,118.0381]
[1747986774109,116.08,182.21,182.1,119.9993]
[1747986774916,8.921e-05,182.17,182.14,0.04184744]
[1747986775103,121.18179845,182.25,182.15,116.08]
[1747986775304,116.08,182.25,182.15,116.08]
[1747986775512,116.08,182.27,182.15,116.08]
[1747986775904,0.03965666,182.23,182.19,0.03998332]
[1747986776105,0.03965666,182.23,182.22,5.4879]
[1747986776315,116.04,182.32,182.2,116.04]
[1747986776512,116.04,182.32,182.21,3.8712]
[1747986777307,0.03846762,182.28,182.27,5.4861]
[1747986777610,0.03846762,182.28,182.25,0.03664257]
[1747986777810,0.03846762,182.28,182.26,5.4865]
[1747986778110,0.03846762,182.28,182.25,0.03664257]
[1747986778907,0.03846762,182.28,182.27,5.4864]
[1747986779114,117.9175,182.36,182.25,116.05664257]
[1747986779310,117.9175,182.36,182.25,116.02]
[1747986779510,5.4842,182.35,182.3,5.4854]
[1747986779710,116.02,182.36,182.25,116.02]
[1747986780216,0.035118,182.32,182.29,0.03546497]
[1747986780716,0.035118,182.32,182.31,5.4852]
[1747986781013,116.02,182.38,182.3,116.02]
[1747986781315,3.8404,182.42,182.3,117.8872]
[1747986781316,119.8604,182.42,182.3,117.8872]
[1747986781515,117.9642,182.42,182.3,117.8872]
[1747986781710,116.02,182.42,182.3,117.8872]
[1747986781913,0.03996438,182.38,182.34,0.04035223]